[Event "Late-Titled-Tuesday-Blitz-October-17-2023"]
[Site "Chess.com"]
[Date "2023.10.17"]
[Round "10"]
[White "Zq1"]
[Black "lamomiajunior"]
[Result "1-0"]
[WhiteElo "2581"]
[BlackElo "2727"]
[TimeControl "180+1"]
[EndTime "15:53:14 PDT"]
[Termination "Zq1 won by resignation"]

1. d4 {[%clk 0:03:00.9]} 1... Nf6 {[%clk 0:02:59.7]} 2. c4 {[%clk 0:03:01]} 2...
e6 {[%clk 0:03:00.3]} 3. Nc3 {[%clk 0:03:00]} 3... Bb4 {[%clk 0:03:00.8]} 4. a3
{[%clk 0:02:59.7]} 4... Bxc3+ {[%clk 0:02:59.6]} 5. bxc3 {[%clk 0:03:00.3]} 5...
b6 {[%clk 0:02:58.9]} 6. e3 {[%clk 0:03:00.5]} 6... c5 {[%clk 0:02:53.2]} 7. Bd3
{[%clk 0:02:59.3]} 7... Nc6 {[%clk 0:02:49]} 8. Ne2 {[%clk 0:02:57.9]} 8... d6
{[%clk 0:02:47.5]} 9. e4 {[%clk 0:02:55.9]} 9... O-O {[%clk 0:02:44.2]} 10. f3
{[%clk 0:02:53.2]} 10... Ba6 {[%clk 0:02:43.8]} 11. Bg5 {[%clk 0:02:41.3]} 11...
Ne7 {[%clk 0:02:02.2]} 12. Bxf6 {[%clk 0:02:40.3]} 12... gxf6 {[%clk 0:02:02.1]}
13. Ng3 {[%clk 0:02:37.2]} 13... Ng6 {[%clk 0:01:54.4]} 14. Qd2 {[%clk
0:02:37.2]} 14... Kh8 {[%clk 0:01:43.2]} 15. h4 {[%clk 0:02:36.1]} 15... Rg8
{[%clk 0:01:42.2]} 16. h5 {[%clk 0:02:32.7]} 16... Ne7 {[%clk 0:01:34.8]} 17.
Rh3 {[%clk 0:02:32.5]} 17... cxd4 {[%clk 0:01:30.6]} 18. cxd4 {[%clk 0:02:32]}
18... Nc6 {[%clk 0:01:31.2]} 19. Qe3 {[%clk 0:02:18.8]} 19... Rc8 {[%clk
0:01:28.2]} 20. Kf2 {[%clk 0:02:08.5]} 20... Na5 {[%clk 0:01:25]} 21. Rc1 {[%clk
0:02:05.2]} 21... Qe7 {[%clk 0:01:22.1]} 22. Qh6 {[%clk 0:01:59.9]} 22... Bxc4
{[%clk 0:00:53.3]} 23. Bxc4 {[%clk 0:01:59.5]} 23... Nxc4 {[%clk 0:00:51.4]} 24.
Rh4 {[%clk 0:01:49.6]} 24... Rg5 {[%clk 0:00:47.9]} 25. Rf4 {[%clk 0:01:46.5]}
25... Rcg8 {[%clk 0:00:39.2]} 26. Qxf6+ {[%clk 0:01:35.7]} 26... Qxf6 {[%clk
0:00:38.8]} 27. Rxf6 {[%clk 0:01:35.9]} 27... b5 {[%clk 0:00:35.9]} 28. Rxf7
{[%clk 0:01:19.6]} 28... Rxg3 {[%clk 0:00:35.2]} 29. Rg1 {[%clk 0:01:20.2]}
29... R3g7 {[%clk 0:00:33.5]} 30. Rf6 {[%clk 0:01:20.4]} 30... Re7 {[%clk
0:00:33.6]} 31. h6 {[%clk 0:01:15.3]} 31... a6 {[%clk 0:00:32.9]} 32. Rc1 {[%clk
0:01:08.6]} 32... Ree8 {[%clk 0:00:32.8]} 33. a4 {[%clk 0:01:07.8]} 33... Rgf8
{[%clk 0:00:32]} 34. Rxf8+ {[%clk 0:01:06]} 34... Rxf8 {[%clk 0:00:32.9]} 35.
axb5 {[%clk 0:01:06.1]} 35... axb5 {[%clk 0:00:33.8]} 36. Rb1 {[%clk 0:01:02.6]}
36... Rb8 {[%clk 0:00:34.2]} 37. Rb4 {[%clk 0:01:02.5]} 37... Kg8 {[%clk
0:00:31.9]} 38. g4 {[%clk 0:00:59.4]} 38... Kf7 {[%clk 0:00:32.4]} 39. f4 {[%clk
0:00:59.8]} 39... d5 {[%clk 0:00:30.7]} 40. e5 {[%clk 0:00:56.7]} 40... Kg6
{[%clk 0:00:31.1]} 41. Kf3 {[%clk 0:00:47]} 41... Kxh6 {[%clk 0:00:30.9]} 42. f5
{[%clk 0:00:47.4]} 42... exf5 {[%clk 0:00:22.5]} 43. gxf5 {[%clk 0:00:47.2]}
43... Kg5 {[%clk 0:00:23.4]} 44. f6 {[%clk 0:00:47]} 44... Kg6 {[%clk
0:00:23.6]} 45. Kf4 {[%clk 0:00:44.9]} 45... h5 {[%clk 0:00:17.1]} 46. Rb1
{[%clk 0:00:43.2]} 46... h4 {[%clk 0:00:07.1]} 47. Rg1+ {[%clk 0:00:42.7]} 47...
Kh6 {[%clk 0:00:07.8]} 48. Rg4 {[%clk 0:00:38.2]} 48... b4 {[%clk 0:00:05.3]}
49. Rxh4+ {[%clk 0:00:38]} 49... Kg6 {[%clk 0:00:06]} 50. Rg4+ {[%clk
0:00:38.2]} 50... Kf7 {[%clk 0:00:06.6]} 51. Rg7+ {[%clk 0:00:38]} 51... Kf8
{[%clk 0:00:07.2]} 52. Rh7 {[%clk 0:00:36.2]} 52... Kg8 {[%clk 0:00:07.8]} 53.
Rg7+ {[%clk 0:00:36.3]} 53... Kh8 {[%clk 0:00:08.5]} 54. Rg1 {[%clk 0:00:33.5]}
54... b3 {[%clk 0:00:08.3]} 55. f7 {[%clk 0:00:33.8]} 55... b2 {[%clk
0:00:07.6]} 56. e6 {[%clk 0:00:33.1]} 56... Nd6 {[%clk 0:00:07.6]} 57. Ke5
{[%clk 0:00:30.6]} 57... Nxf7+ {[%clk 0:00:07.2]} 58. exf7 {[%clk 0:00:30.3]}
58... Kh7 {[%clk 0:00:07.8]} 59. Kf6 {[%clk 0:00:28.2]} 59... Rb6+ {[%clk
0:00:08.2]} 60. Ke7 {[%clk 0:00:27.6]} 60... Rb7+ {[%clk 0:00:08.7]} 61. Ke6
{[%clk 0:00:27.9]} 61... Rb6+ {[%clk 0:00:09.1]} 62. Kxd5 {[%clk 0:00:28.1]}
62... Rf6 {[%clk 0:00:06.4]} 63. Rb1 {[%clk 0:00:26.2]} 63... Kg7 {[%clk
0:00:05.5]} 64. Rxb2 {[%clk 0:00:25.5]} 64... Kxf7 {[%clk 0:00:05.8]} 65. Re2
{[%clk 0:00:25.3]} 65... Ra6 {[%clk 0:00:04.3]} 66. Kc5 {[%clk 0:00:25]} 66...
Ra5+ {[%clk 0:00:04.6]} 67. Kc6 {[%clk 0:00:21.8]} 67... Ra6+ {[%clk 0:00:04.1]}
68. Kb5 {[%clk 0:00:21.6]} 68... Rd6 {[%clk 0:00:03.9]} 69. Kc5 {[%clk
0:00:21.7]} 69... Rd8 {[%clk 0:00:04.7]} 70. d5 {[%clk 0:00:21.5]} 70... Rc8+
{[%clk 0:00:03]} 71. Kb6 {[%clk 0:00:21.2]} 71... Rc1 {[%clk 0:00:02.7]} 72. d6
{[%clk 0:00:18.9]} 72... Kf8 {[%clk 0:00:02.7]} 73. Kb7 {[%clk 0:00:18.3]} 73...
Kf7 {[%clk 0:00:02.5]} 74. Re7+ {[%clk 0:00:12.8]} 74... Kf6 {[%clk 0:00:02.8]}
75. Rc7 {[%clk 0:00:11.8]} 75... Rd1 {[%clk 0:00:02.6]} 76. Kc6 {[%clk
0:00:11.3]} 76... Ke6 {[%clk 0:00:02.9]} 77. Re7+ {[%clk 0:00:11.2]} 77... Kf6
{[%clk 0:00:03.6]} 78. Re2 {[%clk 0:00:11.5]} 78... Rc1+ {[%clk 0:00:03.4]} 79.
Kd7 {[%clk 0:00:11]} 79... Ra1 {[%clk 0:00:04]} 80. Rf2+ {[%clk 0:00:11]} 80...
Kg7 {[%clk 0:00:02.8]} 81. Ke7 {[%clk 0:00:10.7]} 81... Re1+ {[%clk 0:00:03.2]}
82. Kd8 {[%clk 0:00:10.4]} 82... Ra1 {[%clk 0:00:03.4]} 83. d7 {[%clk
0:00:10.2]} 83... Kg8 {[%clk 0:00:03]} 84. Rc2 {[%clk 0:00:07.6]} 84... Kf8
{[%clk 0:00:02.7]} 85. Kc7 {[%clk 0:00:07.6]} 85... Ra7+ {[%clk 0:00:02.7]} 86.
Kc8 {[%clk 0:00:07.8]} 86... Ra8+ {[%clk 0:00:02.7]} 87. Kb7 {[%clk 0:00:08.1]}
87... Rd8 {[%clk 0:00:03.4]} 88. Kc7 {[%clk 0:00:08.4]} 1-0

[Event "Late-Titled-Tuesday-Blitz-October-17-2023"]
[Site "Chess.com"]
[Date "2023.10.17"]
[Round "10"]
[White "Beca95"]
[Black "Bauman_Guy"]
[Result "1/2-1/2"]
[WhiteElo "2943"]
[BlackElo "2901"]
[TimeControl "180+1"]
[EndTime "15:53:17 PDT"]
[Termination "Game drawn - insufficient material"]

1. c4 {[%clk 0:03:00.9]} 1... Nf6 {[%clk 0:03:00]} 2. Nc3 {[%clk 0:03:00.9]}
2... e5 {[%clk 0:03:00.5]} 3. Nf3 {[%clk 0:03:01.2]} 3... Nc6 {[%clk 0:03:01]}
4. e3 {[%clk 0:03:01.5]} 4... g6 {[%clk 0:03:01.7]} 5. d4 {[%clk 0:03:00.6]}
5... exd4 {[%clk 0:03:02.6]} 6. exd4 {[%clk 0:03:00.5]} 6... Bg7 {[%clk
0:03:03.3]} 7. h3 {[%clk 0:02:59.4]} 7... O-O {[%clk 0:03:01]} 8. Be3 {[%clk
0:02:59.4]} 8... d6 {[%clk 0:03:00.8]} 9. Bd3 {[%clk 0:02:57.8]} 9... Ne7 {[%clk
0:02:53]} 10. O-O {[%clk 0:02:55.8]} 10... Bf5 {[%clk 0:02:52.4]} 11. Be2 {[%clk
0:02:47.5]} 11... Re8 {[%clk 0:02:52.4]} 12. Re1 {[%clk 0:02:47.1]} 12... Bd7
{[%clk 0:02:52.2]} 13. Bf1 {[%clk 0:02:42.2]} 13... h6 {[%clk 0:02:51.4]} 14.
Qd3 {[%clk 0:02:35.9]} 14... Nf5 {[%clk 0:02:49.1]} 15. Bd2 {[%clk 0:02:33]}
15... a6 {[%clk 0:02:47.7]} 16. b4 {[%clk 0:02:29]} 16... Rxe1 {[%clk
0:02:45.1]} 17. Rxe1 {[%clk 0:02:28.1]} 17... Qf8 {[%clk 0:02:46]} 18. g4 {[%clk
0:02:26.8]} 18... Ne7 {[%clk 0:02:45.8]} 19. a4 {[%clk 0:02:26.6]} 19... Nc6
{[%clk 0:02:43.4]} 20. b5 {[%clk 0:02:25.9]} 20... Nb4 {[%clk 0:02:43.8]} 21.
Qb1 {[%clk 0:02:25.3]} 21... a5 {[%clk 0:02:44.4]} 22. Bg2 {[%clk 0:02:25.1]}
22... h5 {[%clk 0:02:40.4]} 23. g5 {[%clk 0:02:22]} 23... Bf5 {[%clk 0:02:40.4]}
24. Qd1 {[%clk 0:02:18.7]} 24... Nd7 {[%clk 0:02:34.2]} 25. Be3 {[%clk
0:02:10.8]} 25... Nb6 {[%clk 0:02:29.8]} 26. Bf1 {[%clk 0:02:10.1]} 26... Re8
{[%clk 0:01:58.8]} 27. Qd2 {[%clk 0:02:09.6]} 27... Nc2 {[%clk 0:01:55.2]} 28.
Rc1 {[%clk 0:02:08.4]} 28... Nxe3 {[%clk 0:01:48.8]} 29. fxe3 {[%clk 0:02:09.3]}
29... Qe7 {[%clk 0:01:39.8]} 30. Kf2 {[%clk 0:02:09.4]} 30... c5 {[%clk
0:01:37]} 31. bxc6 {[%clk 0:02:08.2]} 31... bxc6 {[%clk 0:01:37.9]} 32. e4
{[%clk 0:01:51.1]} 32... Bd7 {[%clk 0:01:09.6]} 33. Rb1 {[%clk 0:01:50]} 33...
Qd8 {[%clk 0:01:06.4]} 34. Qb2 {[%clk 0:01:10.7]} 34... Nc8 {[%clk 0:00:59.6]}
35. Qd2 {[%clk 0:01:11]} 35... c5 {[%clk 0:00:48.5]} 36. d5 {[%clk 0:01:02.7]}
36... Nb6 {[%clk 0:00:41.6]} 37. e5 {[%clk 0:00:46.8]} 37... Bxe5 {[%clk
0:00:37.3]} 38. Nxe5 {[%clk 0:00:46.8]} 38... Rxe5 {[%clk 0:00:36.2]} 39. h4
{[%clk 0:00:46.4]} 39... Nxa4 {[%clk 0:00:26.4]} 40. Nd1 {[%clk 0:00:41.2]}
40... Nb6 {[%clk 0:00:18.7]} 41. Qxa5 {[%clk 0:00:34.3]} 41... Rf5+ {[%clk
0:00:14.7]} 42. Kg1 {[%clk 0:00:30.5]} 42... Qe7 {[%clk 0:00:14.6]} 43. Rxb6
{[%clk 0:00:20.1]} 43... Rf4 {[%clk 0:00:15.1]} 44. Qd2 {[%clk 0:00:18.7]} 44...
Rxh4 {[%clk 0:00:13.9]} 45. Rb3 {[%clk 0:00:14.7]} 45... Rg4+ {[%clk 0:00:12.8]}
46. Bg2 {[%clk 0:00:15.3]} 46... Rxg5 {[%clk 0:00:12]} 47. Re3 {[%clk
0:00:14.7]} 47... Re5 {[%clk 0:00:11.9]} 48. Rxe5 {[%clk 0:00:14.4]} 48... Qxe5
{[%clk 0:00:12.8]} 49. Nf2 {[%clk 0:00:14.6]} 49... Bf5 {[%clk 0:00:12.2]} 50.
Qd1 {[%clk 0:00:14.5]} 50... Kg7 {[%clk 0:00:12.4]} 51. Bf3 {[%clk 0:00:13.9]}
51... h4 {[%clk 0:00:12.7]} 52. Kf1 {[%clk 0:00:14.3]} 52... h3 {[%clk 0:00:12]}
53. Bg4 {[%clk 0:00:14.8]} 53... Qg3 {[%clk 0:00:04.7]} 54. Bxf5 {[%clk
0:00:13.6]} 54... gxf5 {[%clk 0:00:05.6]} 55. Qh5 {[%clk 0:00:12.9]} 55... h2
{[%clk 0:00:03.4]} 56. Ke2 {[%clk 0:00:11.9]} 56... Kf6 {[%clk 0:00:02.4]} 57.
Qh6+ {[%clk 0:00:10.2]} 57... Ke7 {[%clk 0:00:03]} 58. Qe3+ {[%clk 0:00:09.8]}
58... Qxe3+ {[%clk 0:00:02.3]} 59. Kxe3 {[%clk 0:00:10.7]} 59... Kf6 {[%clk
0:00:03.1]} 60. Kf4 {[%clk 0:00:11.2]} 60... Kg6 {[%clk 0:00:03.8]} 61. Nh1
{[%clk 0:00:11]} 61... Kf6 {[%clk 0:00:04.4]} 62. Ng3 {[%clk 0:00:10.3]} 62...
Kg6 {[%clk 0:00:05]} 63. Nh1 {[%clk 0:00:10.6]} 63... Kf6 {[%clk 0:00:05.5]} 64.
Nf2 {[%clk 0:00:11.1]} 64... Kg6 {[%clk 0:00:05.8]} 65. Kf3 {[%clk 0:00:11.1]}
65... Kg5 {[%clk 0:00:05.6]} 66. Nh3+ {[%clk 0:00:11.2]} 66... Kh4 {[%clk
0:00:05.7]} 67. Nf2 {[%clk 0:00:11.6]} 67... Kg5 {[%clk 0:00:06.4]} 68. Kg3
{[%clk 0:00:12.1]} 68... f4+ {[%clk 0:00:05.4]} 69. Kxh2 {[%clk 0:00:12.2]}
69... Kf5 {[%clk 0:00:05.9]} 70. Kg2 {[%clk 0:00:12.6]} 70... Ke5 {[%clk
0:00:06.8]} 71. Kf3 {[%clk 0:00:12.7]} 71... Kd4 {[%clk 0:00:07.2]} 72. Ng4
{[%clk 0:00:12.5]} 72... Kxc4 {[%clk 0:00:08.1]} 73. Nf6 {[%clk 0:00:11.8]}
73... Kd4 {[%clk 0:00:06.2]} 74. Kxf4 {[%clk 0:00:12]} 74... c4 {[%clk
0:00:06.7]} 75. Ne8 {[%clk 0:00:10.3]} 75... Kxd5 {[%clk 0:00:06.7]} 76. Ke3
{[%clk 0:00:10.8]} 76... Ke5 {[%clk 0:00:06.6]} 77. Nc7 {[%clk 0:00:10.7]} 77...
d5 {[%clk 0:00:05.3]} 78. Nb5 {[%clk 0:00:11.2]} 78... f5 {[%clk 0:00:05.8]} 79.
Na3 {[%clk 0:00:10.5]} 79... f4+ {[%clk 0:00:05.6]} 80. Kf3 {[%clk 0:00:10.8]}
80... c3 {[%clk 0:00:05.5]} 81. Nc2 {[%clk 0:00:10.6]} 81... d4 {[%clk
0:00:05.6]} 82. Ne1 {[%clk 0:00:10.7]} 82... Kd5 {[%clk 0:00:05.8]} 83. Kxf4
{[%clk 0:00:10.5]} 83... Kc4 {[%clk 0:00:04.8]} 84. Ke4 {[%clk 0:00:11]} 84...
c2 {[%clk 0:00:04.5]} 85. Nxc2 {[%clk 0:00:10.5]} 85... d3 {[%clk 0:00:05.4]}
86. Ne3+ {[%clk 0:00:10.3]} 86... Kc3 {[%clk 0:00:06.3]} 87. Kf3 {[%clk
0:00:10.5]} 87... d2 {[%clk 0:00:06.7]} 88. Ke2 {[%clk 0:00:10.6]} 88... d1=Q+
{[%clk 0:00:07.6]} 89. Nxd1+ {[%clk 0:00:10.8]} 1/2-1/2

[Event "Late-Titled-Tuesday-Blitz-October-17-2023"]
[Site "Chess.com"]
[Date "2023.10.17"]
[Round "10"]
[White "nicholas_ilic"]
[Black "Alphafischer2019"]
[Result "1/2-1/2"]
[WhiteElo "2362"]
[BlackElo "2563"]
[TimeControl "180+1"]
[EndTime "15:53:26 PDT"]
[Termination "Game drawn by repetition"]

1. e4 {[%clk 0:03:00.9]} 1... c5 {[%clk 0:02:59.4]} 2. b3 {[%clk 0:03:00.6]}
2... Nc6 {[%clk 0:02:58.5]} 3. Bb2 {[%clk 0:02:59.7]} 3... e5 {[%clk 0:02:59.2]}
4. f4 {[%clk 0:02:59.6]} 4... d6 {[%clk 0:02:46.7]} 5. Nf3 {[%clk 0:02:58.3]}
5... exf4 {[%clk 0:02:37.2]} 6. Bb5 {[%clk 0:02:56.7]} 6... Nf6 {[%clk
0:02:33.1]} 7. O-O {[%clk 0:02:55.1]} 7... Be7 {[%clk 0:02:33.1]} 8. Nc3 {[%clk
0:02:49.7]} 8... O-O {[%clk 0:02:31.2]} 9. Nd5 {[%clk 0:02:43.7]} 9... Bg4
{[%clk 0:02:10.6]} 10. h3 {[%clk 0:02:13.6]} 10... Bh5 {[%clk 0:02:07.3]} 11.
Nxf4 {[%clk 0:02:12.5]} 11... Bg6 {[%clk 0:01:59.6]} 12. d3 {[%clk 0:02:07.8]}
12... Qb6 {[%clk 0:01:55.3]} 13. Bxc6 {[%clk 0:01:52.3]} 13... bxc6 {[%clk
0:01:56.2]} 14. e5 {[%clk 0:01:52.5]} 14... dxe5 {[%clk 0:01:53.6]} 15. Nxe5
{[%clk 0:01:51.4]} 15... c4+ {[%clk 0:01:47.9]} 16. Kh1 {[%clk 0:01:45.8]} 16...
cxd3 {[%clk 0:01:48.3]} 17. cxd3 {[%clk 0:01:40.4]} 17... Rad8 {[%clk
0:01:42.4]} 18. Nfxg6 {[%clk 0:01:28.9]} 18... hxg6 {[%clk 0:01:41.8]} 19. Rc1
{[%clk 0:01:29.2]} 19... Nh5 {[%clk 0:01:34.4]} 20. Qf3 {[%clk 0:01:18.4]} 20...
c5 {[%clk 0:01:31.3]} 21. Nc6 {[%clk 0:01:09]} 21... Bd6 {[%clk 0:01:28.8]} 22.
Be5 {[%clk 0:00:57]} 22... Bxe5 {[%clk 0:01:22.4]} 23. Nxe5 {[%clk 0:00:56.6]}
23... Qd6 {[%clk 0:01:17.6]} 24. Rfe1 {[%clk 0:00:41.8]} 24... Rde8 {[%clk
0:01:03.6]} 25. Nc4 {[%clk 0:00:29.3]} 25... Qd4 {[%clk 0:01:00.7]} 26. Re4
{[%clk 0:00:25.9]} 26... Rxe4 {[%clk 0:00:58.6]} 27. dxe4 {[%clk 0:00:23.2]}
27... Qxe4 {[%clk 0:00:58.7]} 28. Qxe4 {[%clk 0:00:18.3]} 28... Ng3+ {[%clk
0:00:59]} 29. Kh2 {[%clk 0:00:19.2]} 29... Nxe4 {[%clk 0:00:59.6]} 30. Rd1
{[%clk 0:00:19.6]} 30... Nc3 {[%clk 0:00:54.3]} 31. Rd7 {[%clk 0:00:15.6]} 31...
Nxa2 {[%clk 0:00:51.2]} 32. Rxa7 {[%clk 0:00:15.1]} 32... Nb4 {[%clk 0:00:49.9]}
33. Rc7 {[%clk 0:00:14.7]} 33... Nd3 {[%clk 0:00:50.4]} 34. Rd7 {[%clk
0:00:10.1]} 34... Nf4 {[%clk 0:00:49.2]} 35. Nd6 {[%clk 0:00:07.8]} 35... Ne6
{[%clk 0:00:49.1]} 36. Ra7 {[%clk 0:00:06.6]} 36... f5 {[%clk 0:00:45.6]} 37.
Re7 {[%clk 0:00:05.9]} 37... Nd4 {[%clk 0:00:43.2]} 38. Rc7 {[%clk 0:00:05.6]}
38... Nxb3 {[%clk 0:00:42.9]} 39. Nb7 {[%clk 0:00:04.6]} 39... g5 {[%clk
0:00:38.4]} 40. Nxc5 {[%clk 0:00:03.5]} 40... Nxc5 {[%clk 0:00:39]} 41. Rxc5
{[%clk 0:00:04.4]} 41... Kh7 {[%clk 0:00:39.1]} 42. Kg3 {[%clk 0:00:04.7]} 42...
Kg6 {[%clk 0:00:39.6]} 43. Kf3 {[%clk 0:00:05]} 43... Rf6 {[%clk 0:00:40.3]} 44.
Rc7 {[%clk 0:00:05.2]} 44... Ra6 {[%clk 0:00:40.7]} 45. Rc3 {[%clk 0:00:05.2]}
45... Kf6 {[%clk 0:00:37.9]} 46. Rb3 {[%clk 0:00:05.3]} 46... g6 {[%clk
0:00:37.8]} 47. Kg3 {[%clk 0:00:05.5]} 47... Kg7 {[%clk 0:00:36.1]} 48. Kf3
{[%clk 0:00:05.7]} 48... Kh6 {[%clk 0:00:36.8]} 49. Kg3 {[%clk 0:00:05.7]} 49...
Ra4 {[%clk 0:00:36.7]} 50. Kf3 {[%clk 0:00:05.8]} 50... Rf4+ {[%clk 0:00:37.4]}
51. Kg3 {[%clk 0:00:06.1]} 51... Rf1 {[%clk 0:00:38.1]} 52. Kh2 {[%clk
0:00:06.3]} 52... Kh5 {[%clk 0:00:37.7]} 53. Kg3 {[%clk 0:00:06.6]} 53... f4+
{[%clk 0:00:35.1]} 54. Kh2 {[%clk 0:00:06.9]} 54... g4 {[%clk 0:00:35.8]} 55.
Rb5+ {[%clk 0:00:06.7]} 55... g5 {[%clk 0:00:35.9]} 56. hxg4+ {[%clk 0:00:05.4]}
56... Kxg4 {[%clk 0:00:36.1]} 57. Rb4 {[%clk 0:00:05.7]} 57... Kh5 {[%clk
0:00:30.7]} 58. Rb8 {[%clk 0:00:05.6]} 58... Rf2 {[%clk 0:00:20.8]} 59. Rb4
{[%clk 0:00:04.4]} 59... g4 {[%clk 0:00:20]} 60. Kg1 {[%clk 0:00:04.9]} 60... g3
{[%clk 0:00:17]} 61. Rb8 {[%clk 0:00:04.2]} 61... Ra2 {[%clk 0:00:16.2]} 62.
Rh8+ {[%clk 0:00:03.8]} 62... Kg6 {[%clk 0:00:16.5]} 63. Kf1 {[%clk 0:00:04.1]}
63... Kf5 {[%clk 0:00:15.5]} 64. Rf8+ {[%clk 0:00:03.7]} 64... Ke5 {[%clk
0:00:15.7]} 65. Re8+ {[%clk 0:00:04.2]} 65... Kd6 {[%clk 0:00:16.3]} 66. Rf8
{[%clk 0:00:03.3]} 66... Rf2+ {[%clk 0:00:16.9]} 67. Kg1 {[%clk 0:00:03.7]}
67... Ke5 {[%clk 0:00:16.7]} 68. Re8+ {[%clk 0:00:03.9]} 68... Kd4 {[%clk
0:00:17]} 69. Rf8 {[%clk 0:00:04.2]} 69... Ke3 {[%clk 0:00:17.6]} 70. Re8+
{[%clk 0:00:04.5]} 70... Kd2 {[%clk 0:00:18.3]} 71. Rf8 {[%clk 0:00:04.7]} 71...
Ke1 {[%clk 0:00:18.3]} 72. Re8+ {[%clk 0:00:04.8]} 72... Re2 {[%clk 0:00:17.6]}
73. Rf8 {[%clk 0:00:04.9]} 73... Re4 {[%clk 0:00:17.7]} 74. Ra8 {[%clk
0:00:04.8]} 74... Rd4 {[%clk 0:00:17.3]} 75. Re8+ {[%clk 0:00:03.4]} 75... Kd2
{[%clk 0:00:17.5]} 76. Rf8 {[%clk 0:00:03.6]} 76... Re4 {[%clk 0:00:12.5]} 77.
Rd8+ {[%clk 0:00:03]} 77... Ke3 {[%clk 0:00:11.6]} 78. Kf1 {[%clk 0:00:03.1]}
78... f3 {[%clk 0:00:09]} 79. gxf3 {[%clk 0:00:02.5]} 79... Kxf3 {[%clk
0:00:09.9]} 80. Rf8+ {[%clk 0:00:02.9]} 80... Rf4 {[%clk 0:00:08.8]} 81. Rxf4+
{[%clk 0:00:02.4]} 81... Kxf4 {[%clk 0:00:09.7]} 82. Kg2 {[%clk 0:00:03.2]}
82... Kg4 {[%clk 0:00:10.6]} 83. Kg1 {[%clk 0:00:04.1]} 83... Kh3 {[%clk
0:00:11.5]} 84. Kh1 {[%clk 0:00:04.6]} 84... Kh4 {[%clk 0:00:12.4]} 85. Kg2
{[%clk 0:00:04.9]} 85... Kg4 {[%clk 0:00:13.3]} 86. Kg1 {[%clk 0:00:05.2]} 86...
Kf4 {[%clk 0:00:14.2]} 87. Kg2 {[%clk 0:00:05.5]} 87... Kg4 {[%clk 0:00:15.1]}
1/2-1/2